fUST/lending_fUST_20240902
["ID","MTS","AMOUNT","RATE_DAILY","PERIOD"]
[336943418,1725257445070,-500.0,0.00024931,2]
[336943419,1725257445080,-500.0,0.00024931,2]
[336943420,1725257445089,-500.0,0.00024931,2]
[336943421,1725257445098,-630.82,0.00024931,2]
[336943422,1725257445107,-500.0,0.00024931,2]
[336943423,1725257445116,-500.0,0.00024931,2]
[336943424,1725257445125,-249.29684256,0.00024931,2]
[336943425,1725257445136,-500.0,0.00024931,2]
[336943426,1725257445145,-500.0,0.00024931,2]
[336943427,1725257445155,-500.0,0.00024931,2]
[336943428,1725257445166,-587.88976229,0.00024931,2]
[336943429,1725257445176,-500.0,0.00024931,2]
[336943430,1725257445186,-500.0,0.00024931,2]
[336943431,1725257445195,-500.0,0.00024931,2]
[336943432,1725257445205,-500.0,0.00024931,2]
[336943433,1725257445214,-500.0,0.00024931,2]
[336943434,1725257445223,-500.0,0.00024931,2]
[336943435,1725257445232,-500.0,0.00024931,2]
[336943436,1725257445242,-500.0,0.00024931,2]
[336943437,1725257445252,-500.0,0.00024931,2]
[336943438,1725257445262,-500.0,0.00024931,2]
[336943439,1725257445272,-500.0,0.00024931,2]
[336943440,1725257445282,-500.0,0.00024931,2]
[336943441,1725257445291,-500.0,0.00024931,2]
[336943442,1725257445300,-500.0,0.00024931,2]
[336943443,1725257445310,-490.90114801,0.00024931,2]
[336943444,1725257445319,-560.24,0.00024931,2]
[336943445,1725257445328,-500.0,0.00024931,2]
[336943446,1725257445337,-500.0,0.00024931,2]
[336943447,1725257445346,-594.28,0.00024931,2]
[336943448,1725257445356,-500.0,0.00024931,2]
[336943449,1725257445365,-573.37,0.00024931,2]
[336943450,1725257445374,-500.0,0.00024931,2]
[336943451,1725257445383,-500.0,0.00024931,2]
[336943452,1725257445392,-500.0,0.00024931,2]
[336943453,1725257445402,-500.0,0.00024931,2]
[336943454,1725257445412,-496.45500936,0.00024931,2]
[336943455,1725257445422,-500.0,0.00024931,2]
[336943456,1725257445433,-500.0,0.00024931,2]
[336943457,1725257445452,-500.0,0.00024931,2]
[336943458,1725257445461,-653.75,0.00024931,2]
[336943459,1725257445471,-500.0,0.00024931,2]
[336943460,1725257445480,-500.0,0.00024931,2]
[336943461,1725257445490,-500.0,0.00024931,2]
[336943462,1725257445500,-500.0,0.00024931,2]
[336943463,1725257445509,-513.57387618,0.00024931,2]
[336943464,1725257445518,-500.0,0.00024931,2]
[336943465,1725257445528,-511.83,0.00024931,2]
[336943466,1725257445537,-574.53,0.00024931,2]
[336943467,1725257445546,-500.0,0.00024931,2]
[336943468,1725257445556,-500.0,0.00024931,2]
[336943469,1725257445566,-500.0,0.00024931,2]
[336943470,1725257445575,-641.92,0.00024931,2]
[336943471,1725257445584,-500.0,0.00024931,2]
[336943472,1725257445594,-500.0,0.00024931,2]
[336943473,1725257445603,-500.0,0.00024931,2]
[336943474,1725257445614,-500.0,0.00024931,2]
[336943475,1725257445624,-500.0,0.00024931,2]
[336943476,1725257445636,-500.0,0.00024931,2]
[336943477,1725257445647,-501.30631589,0.00024931,2]
[336943478,1725257445657,-500.0,0.00024931,2]
[336943479,1725257445667,-500.0,0.00024931,2]
[336943480,1725257445676,-500.0,0.00024931,2]
[336943481,1725257445685,-500.0,0.00024931,2]
[336943482,1725257445695,-500.0,0.00024931,2]
[336943483,1725257445704,-500.0,0.00024931,2]
[336943484,1725257445714,-500.0,0.00024931,2]
[336943485,1725257445723,-661.37,0.00024931,2]
[336943486,1725257445734,-500.0,0.00024931,2]
[336943487,1725257445744,-500.0,0.00024931,2]
[336943488,1725257445753,-500.0,0.00024931,2]
[336943489,1725257445762,-500.0,0.00024931,2]
[336943490,1725257445772,-2938.28,0.00024931,2]
[336943491,1725257445782,-500.0,0.00024931,2]
[336943492,1725257445792,-500.0,0.00024931,2]
[336943493,1725257445801,-500.0,0.00024931,2]
[336943494,1725257445811,-200.0,0.00024931,2]
[336943495,1725257445820,-500.0,0.00024931,2]
[336943496,1725257445829,-500.0,0.00024931,2]
[336943497,1725257445839,-500.0,0.00024931,2]
[336943498,1725257445848,-500.0,0.00024931,2]
[336943499,1725257445858,-500.0,0.00024931,2]
[336943500,1725257445867,-500.0,0.00024931,2]
[336943501,1725257445877,-500.0,0.00024931,2]
[336943502,1725257445887,-500.0,0.00024931,2]
[336943503,1725257445896,-500.0,0.00024931,2]
[336943504,1725257445906,-500.0,0.00024931,2]
[336943505,1725257445915,-181.24101756,0.00024931,2]
[336943506,1725257445924,-349.36606398,0.00024931,2]
[336943507,1725257445938,-500.0,0.00024931,2]
[336943508,1725257445947,-500.0,0.00024931,2]
[336943509,1725257445957,-500.0,0.00024931,2]
[336943510,1725257445967,-500.0,0.00024931,2]
[336943511,1725257445976,-834.33,0.00024931,2]
[336943512,1725257445985,-872.84,0.00024931,2]
[336943513,1725257445994,-500.0,0.00024931,2]
[336943514,1725257446003,-505.89865294,0.00024931,2]
[336943515,1725257446012,-500.0,0.00024931,2]
[336943516,1725257446023,-500.0,0.00024931,2]
[336943517,1725257446033,-500.0,0.00024931,2]
[336943518,1725257446043,-500.0,0.00024931,2]
[336943519,1725257446052,-500.0,0.00024931,2]
[336943520,1725257446062,-500.0,0.00024931,2]
[336943521,1725257446072,-531.27,0.00024931,2]
[336943522,1725257446082,-500.0,0.00024931,2]
[336943524,1725257446091,-500.0,0.00024931,2]
[336943525,1725257446101,-151.0,0.00024931,7]
[336943526,1725257446110,-500.0,0.00024931,2]
[336943527,1725257446120,-500.0,0.00024931,2]
[336943528,1725257446129,-500.0,0.00024931,2]
[336943529,1725257446141,-500.0,0.00024931,2]
[336943530,1725257446151,-500.0,0.00024931,2]
[336943532,1725257446163,-500.0,0.00024931,2]
[336943533,1725257446180,-261.52864841,0.00024931,2]
[336943534,1725257446190,-500.0,0.00024931,2]
[336943535,1725257446200,-500.0,0.00024931,2]
[336943536,1725257446210,-500.0,0.00024931,2]
[336943537,1725257446220,-500.0,0.00024931,2]
[336943538,1725257446230,-500.0,0.00024931,2]
[336943539,1725257446240,-500.0,0.00024931,2]
[336943540,1725257446251,-500.0,0.00024931,2]
[336943541,1725257446260,-500.0,0.00024931,2]
[336943542,1725257446270,-500.0,0.00024931,2]
[336943543,1725257446280,-503.63168444,0.00024931,2]
[336943544,1725257446289,-500.0,0.00024931,2]
[336943545,1725257446299,-500.0,0.00024931,2]
[336943546,1725257446309,-500.0,0.00024931,2]
[336943548,1725257446318,-503.74499091,0.00024931,2]
[336943549,1725257446329,-500.0,0.00024931,2]
[336943550,1725257446338,-500.0,0.00024931,2]
[336943551,1725257446347,-500.0,0.00024931,2]
[336943552,1725257446357,-567.6,0.00024931,2]
[336943553,1725257446366,-500.0,0.00024931,2]
[336943554,1725257446376,-500.0,0.00024931,2]
[336943555,1725257446385,-500.0,0.00024931,2]
[336943556,1725257446395,-500.0,0.00024931,2]
[336943557,1725257446404,-500.0,0.00024931,2]
[336943558,1725257446413,-500.0,0.00024931,2]
[336943559,1725257446422,-759.85,0.00024931,2]
[336943560,1725257446433,-500.0,0.00024931,2]
[336943561,1725257446443,-500.0,0.00024931,2]
[336943562,1725257446452,-460.69700446,0.00024931,2]
[336943563,1725257446461,-161.60604739,0.00024931,2]
[336943564,1725257446471,-500.0,0.00024931,2]
[336943565,1725257446481,-500.0,0.00024931,2]
[336943566,1725257446490,-500.0,0.00024931,2]
[336943567,1725257446499,-732.08,0.00024931,2]
[336943568,1725257446509,-500.0,0.00024931,2]
[336943569,1725257446518,-251.9642432,0.00024931,2]
[336943570,1725257446528,-500.0,0.00024931,2]
[336943571,1725257446537,-688.96,0.00024931,2]
[336943572,1725257446546,-395.17663262,0.00024931,2]
[336943573,1725257446555,-500.0,0.00024931,2]
[336943574,1725257446565,-500.0,0.00024931,2]
[336943575,1725257446574,-500.0,0.00024931,2]
[336943576,1725257446584,-631.12,0.00024931,2]
[336943577,1725257446593,-500.0,0.00024931,2]
[336943578,1725257446602,-545.17,0.00024931,2]
[336943579,1725257446611,-500.0,0.00024931,2]
[336943580,1725257446621,-457.60562486,0.00024931,2]
[336943581,1725257446630,-862.81,0.00024931,2]
[336943582,1725257446639,-500.0,0.00024931,2]
[336943583,1725257446649,-500.0,0.00024931,2]
[336943584,1725257446658,-495.0,0.00024931,2]
[336943585,1725257446667,-504.81597529,0.00024931,2]
[336943586,1725257446676,-500.0,0.00024931,2]
[336943587,1725257446687,-1042.62,0.00024931,2]
[336943588,1725257446697,-779.0818979,0.00024931,2]
[336943589,1725257446870,-500.0,0.00024931,2]
[336943590,1725257446880,-151.0,0.00024931,7]
[336943591,1725257446890,-607.2,0.00024931,2]
[336943592,1725257446899,-500.0,0.00024931,2]
[336943593,1725257446909,-500.0,0.00024931,2]
[336943594,1725257446918,-294.9579144,0.00024931,2]
[336943595,1725257446927,-500.0,0.00024931,2]
[336943596,1725257446936,-500.0,0.00024931,2]
[336943597,1725257446946,-500.0,0.00024931,2]
[336943598,1725257446955,-1014.13,0.00024931,2]
[336943599,1725257446964,-500.0,0.00024931,2]
[336943600,1725257446973,-500.0,0.00024931,2]
[336943601,1725257446983,-1816.73,0.00024931,2]
[336943602,1725257446996,-500.0,0.00024931,2]
[336943603,1725257447005,-500.0,0.00024931,2]
[336943604,1725257447014,-500.0,0.00024931,2]
[336943605,1725257447023,-1339.33,0.00024931,2]
[336943606,1725257447032,-2203.75,0.00024931,2]
[336943607,1725257447041,-689.96,0.00024931,2]
[336943608,1725257447050,-1050.36,0.00024931,2]
[336943609,1725257447060,-504.95889577,0.00024931,2]
[336943610,1725257447070,-1328.27,0.00024931,2]
[336943611,1725257447081,-500.0,0.00024931,2]
[336943612,1725257447091,-500.0,0.00024931,2]
[336943613,1725257447100,-500.0,0.00024931,2]
[336943614,1725257447110,-505.12970038,0.00024931,2]
[336943615,1725257447119,-500.0,0.00024931,2]
[336943616,1725257447128,-500.0,0.00024931,2]
[336943617,1725257447137,-625.24,0.00024931,2]
[336943618,1725257447148,-500.0,0.00024931,2]
[336943619,1725257447158,-500.0,0.00024931,2]
[336943620,1725257447169,-1622.43,0.00024931,2]
[336943621,1725257447179,-6199.79843406,0.00024931,2]
[336943622,1725257447191,-3203.55156594,0.00024931,2]
[336943623,1725257447201,-400.87981163,0.00024931,2]
[336943624,1725257447211,-500.0,0.00024931,2]
[336943625,1725257447222,-500.0,0.00024931,2]
[336943626,1725257447232,-500.0,0.00024931,2]
[336943627,1725257447243,-500.0,0.00024931,2]
[336943628,1725257447254,-500.0,0.00024931,2]
[336943629,1725257447265,-500.0,0.00024931,2]
[336943630,1725257447275,-500.0,0.00024931,2]
[336943631,1725257447285,-1227.99,0.00024931,2]
[336943632,1725257447294,-500.0,0.00024931,2]
[336943633,1725257447303,-500.0,0.00024931,2]
[336943634,1725257447313,-500.0,0.00024931,2]
[336943635,1725257447322,-500.34,0.00024931,2]
[336943636,1725257447331,-305.72984482,0.00024931,2]
[336943637,1725257447340,-500.0,0.00024931,2]
[336943638,1725257447350,-500.0,0.00024931,2]
[336943639,1725257447359,-500.0,0.00024931,2]
[336943640,1725257447368,-2151.56,0.00024931,2]
[336943641,1725257447380,-1193.68,0.00024931,2]
[336943642,1725257447390,-959.84,0.00024931,2]
[336943643,1725257447399,-500.0,0.00024931,2]
[336943644,1725257447409,-500.0,0.00024931,2]
[336943645,1725257447418,-1073.65,0.00024931,2]
[336943646,1725257447427,-500.0,0.00024931,2]
[336943647,1725257447437,-500.0,0.00024931,2]
[336943648,1725257447447,-303.5198211,0.00024931,2]
[336943649,1725257447457,-530.59091496,0.00024931,2]
[336943650,1725257447467,-500.0,0.00024931,2]
[336943651,1725257447477,-1372.18,0.00024931,2]
[336943652,1725257447486,-500.09695074,0.00024931,2]
[336943653,1725257447495,-1262.6,0.00024931,2]
[336943654,1725257447504,-815.5,0.00024931,2]
[336943655,1725257447513,-1206.09,0.00024931,2]
[336943656,1725257447522,-500.0,0.00024931,2]
[336943657,1725257447532,-500.0,0.00024931,2]
[336943658,1725257447542,-1986.52,0.00024931,2]
[336943659,1725257447552,-1041.71,0.00024931,2]
[336943660,1725257447563,-582.5826632,0.00024931,2]
[336943661,1725257447573,-992.83,0.00024931,2]
[336943662,1725257447583,-859.7,0.00024931,2]
[336943663,1725257447592,-1412.55,0.00024931,2]
[336943664,1725257447602,-500.0,0.00024931,2]
[336943665,1725257447611,-500.0,0.00024931,2]
[336943666,1725257447620,-733.81,0.00024931,2]
[336943667,1725257447629,-500.0,0.00024931,2]
[336943668,1725257447638,-500.0,0.00024931,2]
[336943669,1725257447647,-439.35630765,0.00024931,2]
[336943670,1725257447656,-3734.39,0.00024931,2]
[336943671,1725257447665,-500.0,0.00024931,2]
[336943672,1725257447675,-847.48,0.00024931,2]
[336943673,1725257447684,-1052.29,0.00024931,2]
[336943674,1725257447693,-1627.3,0.00024931,2]
[336943675,1725257447818,-500.0,0.00024931,2]
[336943676,1725257447828,-807.76,0.00024931,2]
[336943677,1725257447838,-740.63,0.00024931,2]
[336943678,1725257447847,-500.0,0.00024931,2]
[336943679,1725257447857,-402.5374694,0.00024931,2]
[336943680,1725257447866,-500.0,0.00024931,2]
[336943681,1725257447875,-500.0,0.00024931,2]
[336943682,1725257447885,-1206.52,0.00024931,2]
[336943683,1725257447895,-515.3,0.00024931,2]
[336943684,1725257447904,-572.1840676,0.00024931,2]
[336943685,1725257447913,-500.0,0.00024931,2]
[336943686,1725257447922,-500.0,0.00024931,2]
[336943687,1725257447933,-687.81,0.00024931,2]
[336943688,1725257447942,-1033.35,0.00024931,2]
[336943689,1725257447952,-500.0,0.00024931,2]
[336943690,1725257447961,-500.0,0.00024931,2]
[336943691,1725257447970,-1150.78,0.00024931,2]
[336943692,1725257447979,-500.0,0.00024931,2]
[336943693,1725257447989,-500.0,0.00024931,2]
[336943694,1725257447998,-1275.03,0.00024931,2]
[336943695,1725257448007,-502.81969004,0.00024931,2]
[336943696,1725257448017,-500.0,0.00024931,2]
[336943697,1725257448026,-500.0,0.00024931,2]
[336943698,1725257448035,-1253.18,0.00024931,2]
[336943699,1725257448045,-691.33,0.00024931,2]
[336943700,1725257448054,-5778.13,0.00024931,2]
[336943701,1725257448063,-500.0,0.00024931,2]
[336943702,1725257448072,-601.16,0.00024931,2]
[336943703,1725257448082,-500.0,0.00024931,2]
[336943704,1725257448091,-509.6084453,0.00024931,2]
[336943705,1725257448100,-1151.56,0.00024931,2]
[336943706,1725257448109,-598.43,0.00024931,2]
[336943707,1725257448118,-500.0,0.00024931,2]
[336943708,1725257448127,-944.02,0.00024931,2]
[336943709,1725257448137,-1286.05,0.00024931,2]
[336943710,1725257448146,-572.68,0.00024931,2]
[336943711,1725257448156,-597.21,0.00024931,2]
[336943712,1725257448167,-1436.17,0.00024931,2]
[336943713,1725257448178,-1010.37,0.00024931,2]
[336943714,1725257448187,-991.49,0.00024931,2]
[336943715,1725257448196,-1079.61,0.00024931,2]
[336943716,1725257448204,-500.0,0.00024931,2]
[336943717,1725257448214,-500.0,0.00024931,2]
[336943718,1725257448223,-2152.91,0.00024931,2]
[336943719,1725257448232,-6138.78,0.00024931,2]
[336943720,1725257448243,-975.14,0.00024931,2]
[336943721,1725257448252,-505.35678504,0.00024931,2]
[336943722,1725257448261,-500.0,0.00024931,2]
[336943723,1725257448270,-961.23,0.00024931,2]
[336943724,1725257448279,-500.0,0.00024931,2]
[336943725,1725257448289,-2807.02,0.00024931,2]
[336943726,1725257448298,-500.0,0.00024931,2]
[336943727,1725257448308,-1004.99,0.00024931,2]
[336943728,1725257448317,-500.0,0.00024931,2]
[336943729,1725257448326,-500.0,0.00024931,2]
[336943730,1725257448335,-500.0,0.00024931,2]
[336943731,1725257448345,-1158.81,0.00024931,2]
[336943732,1725257448354,-1557.39,0.00024931,2]
[336943733,1725257448362,-511.19595774,0.00024931,2]
[336943734,1725257448372,-500.0,0.00024931,2]
[336943735,1725257448381,-500.0,0.00024931,2]
[336943736,1725257448391,-500.0,0.00024931,2]
[336943737,1725257448400,-159.0,0.00024932,2]
[336943738,1725257448409,-164.745261,0.00024936,2]
[336943739,1725257448419,-345.214234,0.00024964,2]
[336943740,1725257448428,-366.401559,0.00024964,2]
[336943741,1725257448438,-179.144565,0.00024964,2]
[336943742,1725257448447,-192.374312,0.00024964,2]
[336943743,1725257448456,-198.323448,0.00024964,2]
[336943744,1725257448465,-202.740487,0.00024964,2]
[336943745,1725257448475,-300.924316,0.00024964,2]
[336943746,1725257448485,-582.21040088,0.00024968,2]
[336943747,1725257448494,-500.0,0.00024973,2]
[336943748,1725257448504,-500.0,0.00024973,2]
[336943749,1725257448513,-600.0,0.0002498,9]
[336943750,1725257448523,-1000.0,0.00025,2]
[336943751,1725257448532,-155.4282264,0.00025,2]
[336943752,1725257448542,-306.0,0.00025,2]
[336943753,1725257448551,-159.0,0.00025,2]
[336943754,1725257448561,-415.886254,0.00025,2]
[336943755,1725257448571,-153.0,0.00025,2]
[336943756,1725257448580,-207.943127,0.00025,2]
[336943757,1725257448590,-503.59009367,0.00025,2]
[336943758,1725257448600,-160.0,0.00025,2]
[336943759,1725257448609,-164.745261,0.00025074,2]
[336943760,1725257448618,-160.0,0.000251,4]
[336943761,1725257448628,-151.0,0.00025105,7]
[336943762,1725257448638,-500.0,0.00025126,2]
[336943763,1725257448648,-500.0,0.00025126,2]
[336943764,1725257448657,-1125.63,0.00025126,2]
[336943765,1725257448667,-1125.63,0.00025126,2]
[336943766,1725257448676,-1125.63,0.00025126,2]
[336943767,1725257448687,-97009.04982058,0.00025127,2]
[336943768,1725257448697,-151.0,0.00025127,7]
[336943769,1725257448707,-156.00686,0.00025127,7]
[336943770,1725257448718,-156.00686,0.00025127,7]
[336943771,1725257448728,-151.0,0.00025127,7]
[336943772,1725257448737,-151.0,0.00025127,7]
[336943773,1725257448747,-582.21040088,0.00025174,2]
[336943774,1725257448757,-500.0,0.00025199,2]
[336943775,1725257448767,-306.0,0.000252,2]
[336943776,1725257448777,-3000.0,0.000252,2]
[336943777,1725257448786,-500.0,0.00025204,2]
[336943778,1725257448796,-280.63957312,0.00025204,2]
[336943779,1725257448807,-1125.63,0.00025204,2]
[336943780,1725257448817,-1125.63,0.00025204,2]
[336943781,1725257448827,-1125.63,0.00025204,2]
[336943782,1725257448837,-1125.63,0.00025204,2]
[336943783,1725257448846,-1125.63,0.00025204,2]
[336943784,1725257448856,-1125.84046475,0.00025204,2]
[336943785,1725257448866,-151.0,0.00025205,7]
[336943786,1725257448877,-500.0,0.00025205,2]
[336943787,1725257448886,-531.23,0.00025205,2]
[336943788,1725257448896,-606.59323964,0.00025205,2]
[336943789,1725257448905,-500.0,0.00025205,2]
[336943790,1725257448915,-500.0,0.00025205,2]
[336943791,1725257448924,-500.0,0.00025205,2]
[336943792,1725257448935,-500.0,0.00025205,2]
[336943793,1725257448955,-500.0,0.00025205,2]
[336943794,1725257448966,-500.0,0.00025205,2]
[336943795,1725257448975,-500.0,0.00025205,2]
[336943796,1725257448985,-151.0,0.00025205,7]
[336943797,1725257448995,-500.0,0.00025205,2]
[336943798,1725257449004,-500.0,0.00025205,2]
[336943799,1725257449014,-500.0,0.00025205,2]
[336943800,1725257449023,-500.0,0.00025205,2]
[336943801,1725257449032,-630.82,0.00025205,2]
[336943802,1725257449041,-500.0,0.00025205,2]
[336943803,1725257449050,-500.0,0.00025205,2]
[336943804,1725257449059,-156.00686,0.00025205,7]
[336943805,1725257449068,-156.00686,0.00025205,7]
[336943806,1725257449078,-500.0,0.00025205,2]
[336943807,1725257449087,-500.0,0.00025205,2]
[336943808,1725257449098,-500.0,0.00025205,2]
[336943809,1725257449108,-500.0,0.00025205,2]
[336943810,1725257449117,-500.0,0.00025205,2]
[336943811,1725257449126,-500.0,0.00025205,2]
[336943812,1725257449135,-270.1512282,0.00025205,2]
[336943813,1725257449146,-500.0,0.00025205,2]
[336943814,1725257449155,-500.0,0.00025205,2]
[336943815,1725257449170,-500.0,0.00025205,2]
[336943816,1725257449180,-500.0,0.00025205,2]
[336943817,1725257449192,-500.0,0.00025205,2]
[336943818,1725257449202,-560.24,0.00025205,2]
[336943819,1725257449213,-500.0,0.00025205,2]
[336943820,1725257449222,-500.0,0.00025205,2]
[336943821,1725257449232,-594.28,0.00025205,2]
[336943822,1725257449241,-500.0,0.00025205,2]
[336943823,1725257449254,-573.37,0.00025205,2]
[336943824,1725257449264,-500.0,0.00025205,2]
[336943825,1725257449274,-500.0,0.00025205,2]
[336943826,1725257449284,-500.0,0.00025205,2]
[336943827,1725257449294,-502.8123865,0.00025205,2]
[336943828,1725257449304,-500.0,0.00025205,2]
[336943829,1725257449314,-653.75,0.00025205,2]
[336943830,1725257449324,-500.0,0.00025205,2]
[336943831,1725257449335,-500.0,0.00025205,2]
[336943832,1725257449345,-500.0,0.00025205,2]
[336943833,1725257449355,-500.0,0.00025205,2]
[336943834,1725257449364,-511.83,0.00025205,2]
[336943835,1725257449374,-574.53,0.00025205,2]
[336943836,1725257449384,-500.0,0.00025205,2]
[336943837,1725257449393,-500.0,0.00025205,2]
[336943838,1725257449403,-641.92,0.00025205,2]
[336943839,1725257449413,-500.0,0.00025205,2]
[336943840,1725257449423,-500.0,0.00025205,2]
[336943841,1725257449434,-500.0,0.00025205,2]
[336943842,1725257449444,-661.37,0.00025205,2]
[336943843,1725257449453,-500.0,0.00025205,2]
[336943844,1725257449463,-2938.28,0.00025205,2]
[336943845,1725257449473,-500.0,0.00025205,2]
[336943846,1725257449482,-500.0,0.00025205,2]
[336943847,1725257449491,-200.0,0.00025205,2]
[336943848,1725257449501,-500.0,0.00025205,2]
[336943849,1725257449510,-359.93565185,0.00025205,2]
[336943850,1725257449520,-500.0,0.00025205,2]
[336943851,1725257449529,-488.58025682,0.00025205,2]
[336943852,1725257449538,-507.61811917,0.00025205,2]
[336943853,1725257449547,-500.0,0.00025205,2]
[336943854,1725257449556,-500.0,0.00025205,2]
[336943855,1725257449565,-500.0,0.00025205,2]
[336943856,1725257449575,-500.0,0.00025205,2]
[336943857,1725257449584,-500.0,0.00025205,2]
[336943858,1725257449593,-834.33,0.00025205,2]
[336943859,1725257449603,-872.84,0.00025205,2]
[336943860,1725257449612,-500.0,0.00025205,2]
[336943861,1725257449621,-500.0,0.00025205,2]
[336943862,1725257449630,-500.0,0.00025205,2]
[336943863,1725257449639,-500.0,0.00025205,2]
[336943864,1725257449649,-503.13671639,0.00025205,2]
[336943865,1725257449658,-531.27,0.00025205,2]
[336943866,1725257449667,-500.0,0.00025205,2]
[336943867,1725257449676,-500.0,0.00025205,2]
[336943868,1725257449686,-151.0,0.00025205,7]
[336943869,1725257449695,-500.0,0.00025205,2]
[336943870,1725257449705,-500.0,0.00025205,2]
[336943871,1725257449715,-500.0,0.00025205,2]
[336943872,1725257449727,-500.0,0.00025205,2]
[336943873,1725257449739,-500.0,0.00025205,2]
[336943874,1725257449748,-500.0,0.00025205,2]
[336943875,1725257449760,-500.0,0.00025205,2]
[336943876,1725257449769,-452.44250149,0.00025205,2]
[336943877,1725257449778,-500.0,0.00025205,2]
[336943878,1725257449787,-500.0,0.00025205,2]
[336943879,1725257449795,-501.71763306,0.00025205,2]
[336943880,1725257449804,-500.0,0.00025205,2]
[336943881,1725257449813,-500.0,0.00025205,2]
[336943882,1725257449824,-500.0,0.00025205,2]
[336943883,1725257449835,-500.0,0.00025205,2]
[336943884,1725257449846,-500.0,0.00025205,2]
[336943885,1725257449857,-567.6,0.00025205,2]
[336943886,1725257449867,-500.0,0.00025205,2]
[336943887,1725257449876,-500.0,0.00025205,2]
[336943888,1725257449886,-507.13570586,0.00025205,2]
[336943889,1725257449895,-500.0,0.00025205,2]
[336943890,1725257449905,-288.97975478,0.00025205,2]
[336943891,1725257449914,-759.85,0.00025205,2]
[336943892,1725257449923,-500.0,0.00025205,2]
[336943893,1725257449932,-500.0,0.00025205,2]
[336943894,1725257449941,-500.0,0.00025205,2]
[336943895,1725257449951,-500.0,0.00025205,2]
[336943896,1725257449960,-732.08,0.00025205,2]
[336943897,1725257449969,-500.0,0.00025205,2]
[336943898,1725257449978,-688.96,0.00025205,2]
[336943899,1725257449987,-500.0,0.00025205,2]
[336943900,1725257449996,-631.12,0.00025205,2]
[336943901,1725257450005,-500.0,0.00025205,2]
[336943902,1725257450014,-545.17,0.00025205,2]
[336943903,1725257450023,-862.81,0.00025205,2]
[336943904,1725257450032,-1042.62,0.00025205,2]
[336943905,1725257450041,-607.2,0.00025205,2]
[336943906,1725257450050,-151.0,0.00025205,7]
[336943907,1725257450058,-500.0,0.00025205,2]
[336943908,1725257450068,-500.0,0.00025205,2]
[336943909,1725257450077,-500.0,0.00025205,2]
[336943910,1725257450086,-500.0,0.00025205,2]
[336943911,1725257450095,-500.0,0.00025205,2]
[336943912,1725257450104,-1014.13,0.00025205,2]
[336943913,1725257450113,-500.0,0.00025205,2]
[336943914,1725257450124,-1816.73,0.00025205,2]
[336943915,1725257450134,-500.0,0.00025205,2]
[336943916,1725257450143,-506.14485071,0.00025205,2]
[336943917,1725257450153,-191.55075328,0.00025205,2]
[336943918,1725257450162,-1339.33,0.00025205,2]
[336943919,1725257450177,-2203.75,0.00025205,2]
[336943920,1725257450188,-689.96,0.00025205,2]